bitfinex/quotes_ETHUSD_20240614
["timestamp","ask_amount","ask_price","bid_price","bid_amount"]
[1718381677465,0.75,3417.9,3416.6,1.43344514]
[1718381677466,0.75,3417.9,3416.9,2.92662]
[1718381677675,0.75,3418.3,3417.0,1.43344514]
[1718381677852,3.6756,3418.1,3417.0,1.43344514]
[1718381678153,0.75,3418.1,3417.0,1.43344514]
[1718381678457,3.67543,3418.3,3417.0,1.43344514]
[1718381678657,2.92577,3417.9,3416.6,2.92688]
[1718381678843,0.75,3417.5,3415.8,2.92756]
[1718381679164,0.75,3417.5,3415.9,1.43344514]
[1718381679165,0.75,3417.1,3415.9,1.43344514]
[1718381679333,2.92637,3417.2,3415.9,4.36090514]
[1718381679739,2.92663,3416.9,3415.9,1.43344514]
[1718381680071,2.92663,3416.9,3415.3,2.92799]
[1718381680072,0.75,3416.5,3415.3,2.92799]
[1718381680219,0.75,3416.5,3415.4,1.43344514]
[1718381680557,0.75,3416.5,3415.5,2.92782]
[1718381680773,0.75,3416.7,3415.5,1.43344514]
[1718381680921,2.92723,3416.2,3414.5,2.92867]
[1718381681120,2.9274,3416.0,3414.6,4.36204514]
[1718381681362,2.92723,3416.2,3414.7,2.9285]
[1718381681363,2.92732,3416.1,3414.7,2.9285]
[1718381681517,0.75,3416.1,3414.8,1.43344514]
[1718381681747,0.80835142,3416.1,3414.8,1.43344514]
[1718381681955,2.92745,3416.0,3414.8,1.43344514]
[1718381682194,2.92767,3415.7,3414.8,1.43344514]
[1718381682402,2.9276,3415.8,3414.8,1.43344514]
[1718381682691,0.75,3416.0,3414.8,4.36186514]
[1718381682988,0.75,3416.3,3415.2,2.928]
[1718381683311,0.75,3417.0,3415.3,1.78478356]
[1718381683481,0.75,3417.0,3415.8,2.92748]
[1718381683645,0.75,3417.0,3415.9,1.49197565]
[1718381683849,0.75,3417.0,3415.9,4.41943565]
[1718381684100,0.75,3417.0,3416.4,2.92703]
[1718381684288,0.75,3417.0,3416.5,0.0585284]
[1718381684516,0.75,3417.6,3416.6,1.43344514]
[1718381684654,0.75,3417.4,3416.2,2.92714]
[1718381684996,0.75,3417.6,3416.4,2.92705]
[1718381685286,0.75,3417.4,3416.2,4.36066514]
[1718381685490,2.92629,3417.3,3416.0,2.92739]
[1718381685795,0.75,3417.4,3416.1,1.43344514]
[1718381685977,0.75,3417.4,3415.8,2.92748]
[1718381685978,0.75,3417.1,3415.8,2.92748]
[1718381686162,0.75,3417.1,3415.9,4.36084514]
[1718381686651,0.05835142,3417.0,3415.5,2.92777]
[1718381686848,0.75,3416.5,3415.6,1.43344514]
[1718381687086,0.75,3416.3,3415.2,2.92808]
[1718381687292,0.75,3416.3,3415.2,1.7683075]
[1718381687597,0.75,3416.3,3415.2,4.36152514]
[1718381687812,0.75,3416.0,3415.3,0.0585449]
[1718381688096,0.75,3416.1,3415.3,0.0585449]
[1718381688251,0.75,3416.4,3415.4,2.92789]
[1718381688450,0.75,3416.4,3415.5,0.05854164]
[1718381688655,1.5,3416.4,3415.6,0.05854199]
[1718381688854,1.5,3416.4,3414.9,0.05854434]
[1718381689098,1.5,3416.4,3415.2,2.92801]
[1718381689338,0.75,3416.2,3414.6,2.92852]
[1718381689597,2.92776,3415.6,3414.2,2.92886]
[1718381689769,2.92776,3415.6,3413.8,2.92927]
[1718381689770,1.5,3415.0,3413.8,2.92927]
[1718381690097,1.5,3415.0,3413.8,4.94858314]
[1718381690757,1.5,3415.0,3413.9,2.92917]
[1718381691317,1.5,3415.0,3414.0,0.05856811]
[1718381692576,0.05835142,3414.9,3414.0,0.05856811]
[1718381692975,0.75,3414.7,3413.3,2.92971]
[1718381693176,0.75,3414.2,3413.0,2.92995]
[1718381693376,0.80835142,3414.2,3412.9,2.93005]
[1718381693566,0.80835142,3414.2,3412.9,4.36349514]
[1718381693787,10.50531,3414.0,3412.9,1.43344514]
[1718381693975,0.05835142,3413.9,3412.9,1.43344514]
[1718381694376,0.75,3413.7,3412.9,1.43344514]
[1718381694580,2.98780142,3413.6,3412.7,0.1202585]
[1718381694908,4.42988,3413.1,3412.7,0.1202585]
[1718381695221,3.68014,3412.9,3412.7,0.1202585]
[1718381695381,0.80835142,3412.8,3412.7,0.1202585]
[1718381695920,0.75,3412.8,3412.7,0.1202585]
[1718381697056,0.80835142,3412.8,3412.7,0.1202585]
[1718381697354,0.75,3413.0,3412.7,0.1202585]
[1718381698554,0.75,3413.6,3412.7,0.1202585]
[1718381698751,0.75,3413.6,3412.9,2.93005]
[1718381698922,0.75,3413.6,3413.0,0.05859071]
[1718381699851,0.75,3413.6,3412.7,3.0504785]
[1718381699852,0.75,3413.5,3412.7,0.1202585]
[1718381700155,0.80835142,3413.6,3412.7,0.1202585]
[1718381700156,0.75,3412.9,3412.7,0.1202585]
[1718381700361,0.75,3413.2,3412.7,0.1202585]
[1718381700527,3.68014,3412.8,3412.7,0.1202585]
[1718381700734,3.68014,3412.8,3410.3,1.19870663]
[1718381700735,0.75,3412.0,3410.1,35.0]
[1718381701068,0.75,3411.6,3410.2,2.93235]
[1718381701245,0.75,3411.6,3409.9,1.172332]
[1718381701246,0.75,3412.0,3410.5,2.93211]
[1718381701429,0.75,3412.4,3410.4,1.755]
[1718381701430,0.75,3412.1,3410.4,2.93216]
[1718381701751,0.75,3411.6,3410.3,0.293235]
[1718381701957,0.75,3411.8,3410.5,0.05862232]
[1718381702110,1.5,3411.0,3409.9,2.93261]
[1718381702315,0.75,3410.5,3409.2,0.1202585]
[1718381702557,0.05835142,3410.9,3409.2,0.1202585]
[1718381702558,0.75,3410.0,3409.2,0.1202585]
[1718381702870,0.75,3410.3,3409.3,0.05865758]
[1718381703065,1.5,3411.0,3409.4,2.93305]
[1718381703212,0.75,3410.8,3409.4,2.93306]
[1718381703415,0.75,3411.0,3409.9,2.93261]
[1718381703737,0.75,3411.0,3410.0,2.9325]
[1718381704055,8.1631,3412.4,3411.5,2.9312]
[1718381704256,0.75,3412.6,3411.9,2.93089]
[1718381704417,0.75,3413.0,3412.6,2.9303]
[1718381704619,7.4131,3413.2,3412.9,2.93005]
[1718381704853,1.5,3413.7,3413.0,2.92996]
[1718381705063,6.9354,3414.0,3413.2,5.85952]
[1718381705229,6.9354,3414.0,3413.0,0.05859668]
[1718381705230,0.75,3414.6,3413.5,2.92953]
[1718381705430,0.75,3414.6,3413.3,35.05858072]
[1718381705431,7.61791947,3414.8,3414.2,2.92892]
[1718381705675,0.75,3414.9,3414.4,2.92871]
[1718381705968,0.75,3415.0,3412.3,2.93051]
[1718381706171,0.05835142,3415.2,3414.0,2.92908]
[1718381706504,0.75,3415.7,3415.1,2.92815]
[1718381706626,0.75,3415.7,3414.9,2.92831]
[1718381706627,1.5,3416.3,3415.2,0.05855219]
[1718381706819,0.05835142,3416.2,3414.7,2.92845]
[1718381707189,0.75,3416.3,3415.5,2.92777]
[1718381707399,0.75,3417.1,3415.6,1.49198852]
[1718381707526,0.75,3416.6,3416.1,2.92729]
[1718381707868,0.75,3417.5,3416.5,2.92696]
[1718381708087,0.75,3417.8,3416.8,2.92669]
[1718381708286,0.75,3417.8,3416.9,0.05851996]
[1718381708497,0.75,3417.3,3415.7,3.0]
[1718381708786,0.75,3417.8,3417.0,2.92652]
[1718381708963,0.75,3417.8,3417.1,0.05851687]
[1718381709130,7.2458,3418.0,3416.7,2.92677]
[1718381709131,0.75,3417.7,3416.7,2.92677]
[1718381709324,0.75,3417.7,3416.8,2.92667]
[1718381709642,7.9958,3418.0,3416.9,1.49196581]
[1718381709842,0.75,3418.2,3417.2,2.92629]
[1718381710083,1.20777843,3418.8,3417.3,1.4919554]
[1718381710221,0.45777843,3418.8,3417.9,2.92574]
[1718381710545,0.05835142,3418.7,3417.0,2.92647]
[1718381710741,0.75,3418.1,3416.7,2.92677]
[1718381711063,0.75,3418.5,3417.2,2.92633]
[1718381711284,0.45777843,3418.8,3417.6,2.92599]
[1718381711596,7.6097,3418.9,3417.3,2.92623]
[1718381711597,0.05835142,3418.7,3417.3,2.92623]
[1718381711803,0.75,3418.3,3416.6,2.92687]
[1718381712074,0.75,3417.7,3416.2,3.0]
[1718381712289,0.75,3418.0,3416.3,1.49196451]
[1718381712427,2.92487,3419.0,3416.3,1.49196451]
[1718381712428,0.75,3419.0,3416.3,1.49196451]
[1718381712626,1.5,3419.0,3418.1,2.92558]
[1718381712823,1.5,3419.0,3417.9,2.92571]
[1718381713077,0.75,3418.7,3417.9,1.43344514]
[1718381713299,7.6097,3418.9,3418.0,1.43344514]
[1718381713502,1.5,3419.5,3418.0,1.607431]
[1718381713651,0.75,3419.3,3418.5,2.92522]
[1718381713856,0.75,3419.3,3418.2,2.92549]
[1718381713857,0.75,3419.3,3418.4,2.9253]
[1718381714197,0.75,3419.3,3418.2,2.92547]
[1718381714328,0.75,3418.7,3417.6,3.0]
[1718381714677,6.9694,3419.8,3418.8,2.92497]
[1718381714877,3.67384,3420.2,3418.9,1.43344514]
[1718381714878,1.5,3420.2,3418.9,1.43344514]
[1718381715076,0.45763135,3419.6,3418.9,1.43344514]
[1718381715393,3.67393,3420.1,3418.6,2.92512]
[1718381715567,0.75,3420.1,3419.0,1.43344514]
[1718381715778,0.9,3420.1,3419.0,1.43344514]
[1718381716278,0.75,3420.2,3419.3,2.92455]
[1718381716490,0.45756639,3420.4,3419.9,2.92403]
[1718381716685,0.45756639,3420.4,3419.3,2.92456]
[1718381716686,0.45756639,3420.4,3420.1,2.9238]
[1718381716831,0.45756639,3420.4,3419.4,2.92447]
[1718381717033,0.45756639,3420.4,3419.5,1.43344514]
[1718381717235,1.20756639,3420.4,3419.5,1.43344514]
[1718381717475,1.20756639,3420.4,3419.3,2.92451]
[1718381717476,0.75,3420.0,3419.3,2.92451]
[1718381717702,0.75,3419.8,3418.9,2.92486]
[1718381717981,0.75,3420.1,3419.0,1.43344514]
[1718381718272,0.75,3421.0,3420.0,2.92395]
[1718381718484,0.9,3421.0,3420.0,1.43344514]
[1718381718780,0.75,3420.9,3419.8,2.92409]
[1718381718983,0.9,3421.0,3420.0,2.92393]
[1718381719331,0.9,3421.0,3420.3,2.9237]
[1718381719484,0.9,3421.0,3419.2,1.755]
[1718381719485,0.165,3420.9,3419.9,2.92399]
[1718381719656,0.165,3420.9,3419.7,2.92422]
[1718381719838,0.165,3420.9,3419.2,2.92461]
[1718381719839,0.75,3420.5,3419.2,2.92461]
[1718381720041,0.75,3420.8,3419.3,1.43344514]
[1718381720242,0.75,3421.0,3419.7,2.92422]
[1718381720438,0.75,3421.0,3420.2,2.92376]
[1718381720653,0.75,3421.0,3420.5,2.92352]
[1718381720895,0.75,3421.0,3420.3,4.35709514]
[1718381721048,0.75,3421.0,3420.3,1.43344514]
[1718381721367,1.5,3421.0,3419.4,2.9244]
[1718381721551,0.75,3420.6,3419.5,4.35779514]
[1718381721891,0.75,3420.6,3419.7,2.9242]
[1718381722595,0.45742386,3422.1,3420.5,1.43344514]
[1718381722741,0.45742386,3422.1,3419.8,5.9241]
[1718381722742,0.45742386,3422.1,3421.9,2.92233]
[1718381722946,6.7793,3422.7,3422.1,2.92218]
[1718381723154,2.96953882,3425.0,3422.2,1.43344514]
[1718381723155,0.95042039,3423.1,3422.2,1.43344514]
[1718381723462,0.75,3422.9,3421.9,2.92233]
[1718381723767,0.75,3422.9,3422.0,3.02528725]
[1718381723970,0.75,3422.9,3422.0,0.10305725]
[1718381724152,0.1202585,3423.1,3422.3,2.92198]
[1718381724578,0.1202585,3423.1,3422.1,4.35559514]
[1718381724856,0.37287941,3423.0,3422.1,1.43344514]
[1718381725255,0.75,3422.7,3422.0,0.10305725]
[1718381725457,1.15444094,3422.7,3422.0,0.10305725]
[1718381725757,0.75,3422.3,3422.0,0.10305725]
[1718381725985,0.75,3422.6,3422.0,0.10305725]
[1718381726171,0.37287941,3422.3,3422.0,0.10305725]
[1718381726374,0.75,3422.6,3422.0,0.10305725]
[1718381726557,0.1202585,3423.1,3422.2,2.92203]
[1718381726757,0.37287941,3423.0,3422.4,2.9219]
[1718381726996,0.1202585,3423.1,3422.5,2.9218]
[1718381727201,0.1202585,3423.1,3422.9,2.92147]
[1718381727412,0.1202585,3423.1,3423.0,1.43344514]
[1718381727609,0.45720011,3423.8,3423.7,8.76243]
[1718381727756,0.45720011,3423.8,3423.0,4.43344514]
[1718381727757,0.45720011,3423.8,3423.0,3.0]
[1718381727960,0.45720011,3423.8,3423.1,35.0]
[1718381728609,0.75,3423.9,3422.6,2.94573]
[1718381728764,0.37287941,3423.6,3422.6,0.024]
[1718381728958,0.75,3423.3,3422.6,0.024]
[1718381729265,0.75,3423.0,3422.6,0.024]
[1718381729466,1.12287941,3423.1,3422.6,0.024]
[1718381729661,1.12287941,3423.1,3422.7,0.10303618]
[1718381730185,0.75,3423.1,3422.7,0.10303618]
[1718381730390,0.37287941,3423.4,3422.7,0.10303618]
[1718381730897,0.75,3423.7,3423.0,2.92139]
[1718381731107,1.20706567,3425.6,3423.1,4.35474514]
[1718381731108,0.75,3424.3,3423.1,4.35474514]
[1718381731316,0.37287941,3424.6,3423.1,4.35474514]
[1718381731317,0.75,3424.5,3423.5,2.92093]
[1718381731604,0.37287941,3424.6,3423.7,2.9208]
[1718381731787,0.37287941,3424.6,3423.5,1.43344514]
[1718381732299,0.75,3424.2,3423.2,35.0]
[1718381732606,0.37287941,3423.2,3422.7,0.10303618]
[1718381732767,7.3118,3424.5,3422.7,0.10303618]
[1718381732768,0.75,3423.6,3422.7,0.10303618]
[1718381732965,0.75,3423.6,3422.8,0.10303317]
[1718381733186,0.37287941,3424.0,3423.2,2.92122]
[1718381733389,0.37287941,3424.0,3423.3,3.02416812]
[1718381733702,0.37287941,3424.0,3423.5,2.92097]
[1718381733869,0.75,3424.1,3423.5,2.92097]
[1718381734067,1.12287941,3424.5,3424.0,2.92054]
[1718381734267,0.37287941,3424.5,3424.1,0.10299405]
[1718381734480,1.12287941,3425.1,3424.1,1.83879259]
[1718381734681,0.75,3424.9,3424.2,2.92039]
[1718381734881,0.75,3424.9,3424.1,0.10299405]
[1718381735206,0.37287941,3424.2,3424.1,0.10299405]
[1718381736205,0.75,3423.6,3422.2,2.92209]
[1718381736487,0.75,3423.6,3422.8,2.92157]
[1718381736783,0.37287941,3423.4,3422.8,2.92157]
[1718381736985,0.37287941,3423.9,3422.9,1.43344514]
[1718381737303,0.37287941,3423.9,3423.1,2.92132]
[1718381737700,0.75,3423.7,3422.8,2.92154]
[1718381737897,0.75,3423.4,3422.4,2.92191]
[1718381738121,0.37287941,3423.0,3422.3,2.92199]
[1718381738335,0.75,3423.4,3422.5,2.92177]
[1718381738659,1.12287941,3423.9,3423.7,0.024]
[1718381739535,0.75,3423.4,3422.2,2.92202]
[1718381739836,1.12287941,3423.4,3422.3,4.35536514]
[1718381740047,0.75,3423.4,3422.4,2.92191]
[1718381740266,1.12287941,3423.4,3422.4,1.43344514]
[1718381740395,1.12287941,3423.4,3422.2,2.92204]
[1718381740595,0.37287941,3423.2,3422.2,4.35545514]
[1718381740795,0.37287941,3423.2,3421.6,36.755]
[1718381740796,0.75,3423.1,3421.6,35.0]
[1718381740994,0.75,3423.1,3422.0,2.92226]
[1718381741252,0.75,3423.1,3422.0,4.35570514]
[1718381741429,0.75,3422.6,3421.5,2.92264]
[1718381741616,0.75,3422.6,3421.3,2.92278]
[1718381741617,0.75,3422.4,3421.3,2.92278]
[1718381741811,0.75,3422.6,3421.4,1.43344514]
[1718381742063,6.7667,3422.7,3421.4,1.43344514]
[1718381742064,7.5167,3422.7,3422.0,2.9222]
[1718381742207,0.37287941,3422.8,3421.3,2.92278]
[1718381742208,0.75,3422.6,3421.3,2.92283]
[1718381742419,0.75,3422.6,3421.8,2.92243]
[1718381742610,0.75,3422.3,3421.4,0.292283]
[1718381742854,0.75,3422.3,3421.4,2.92274]
[1718381743003,0.75,3422.3,3421.4,2.92277]
[1718381743207,0.37287941,3422.4,3421.4,1.43344514]
[1718381743425,0.37287941,3422.6,3421.7,2.92248]
[1718381743645,0.37287941,3422.8,3421.8,1.43344514]
[1718381743945,0.37287941,3422.8,3421.9,2.92227]
[1718381744249,7.0085,3423.2,3422.0,1.43344514]
[1718381744250,0.37287941,3423.1,3422.0,1.43344514]
[1718381744469,1.12287941,3423.5,3422.4,2.92192]
[1718381744671,0.75,3423.1,3422.3,2.92193]
[1718381744825,0.75,3423.1,3422.3,37.92193]
[1718381745007,0.75,3423.1,3422.3,2.92193]
[1718381745349,0.75,3423.0,3421.8,2.92241]
[1718381745549,3.67161,3422.8,3421.6,2.9226]
[1718381745767,0.37287941,3423.0,3421.7,4.35595514]
[1718381746078,0.75,3421.9,3420.6,35.0]
[1718381746210,0.37287941,3422.2,3419.7,2.92422]
[1718381746211,0.75,3421.7,3419.7,2.92422]
[1718381746534,0.37287941,3421.4,3420.5,2.92347]
[1718381746743,0.37287941,3421.4,3420.5,2.92352]
[1718381746907,0.37287941,3421.4,3420.2,35.0]
[1718381747107,0.37287941,3421.2,3420.3,1.43344514]
[1718381747336,0.37287941,3421.4,3420.3,7.22402542]
[1718381747636,0.37287941,3422.0,3420.9,2.9232]
[1718381747848,0.37287941,3422.0,3421.1,2.92303]
[1718381748026,0.75,3421.9,3420.9,2.92319]
[1718381748236,0.75,3421.9,3420.9,1.43344514]
[1718381748553,0.75,3421.9,3421.1,2.92303]
[1718381749408,0.37287941,3422.0,3421.1,1.43344514]
[1718381749841,0.37287941,3422.0,3421.2,1.43344514]
[1718381750173,0.37287941,3422.0,3420.7,2.92336]
[1718381750459,1.12287941,3422.0,3420.8,4.35666514]
[1718381750756,1.12287941,3422.0,3420.8,1.43344514]
[1718381750968,1.12287941,3422.0,3420.8,4.35673514]
[1718381751281,0.37287941,3421.6,3420.8,4.35665514]
[1718381751444,0.75,3422.0,3421.0,2.92311]
[1718381751649,0.75,3422.0,3421.1,2.92303]
[1718381751890,0.75,3422.0,3421.0,2.92312]
[1718381752211,0.75,3422.0,3420.9,2.9232]
[1718381752448,0.75,3422.0,3420.9,4.35664514]
[1718381752947,0.37287941,3421.6,3420.9,4.35664514]
[1718381753159,0.37287941,3421.6,3420.9,1.43344514]
[1718381753339,0.75,3422.0,3420.9,1.43344514]
[1718381753541,2.92209,3422.2,3419.5,4.12449033]
[1718381753542,1.12287941,3421.8,3420.5,2.92348]
[1718381753723,1.12287941,3421.8,3420.6,1.43344514]
[1718381754057,6.8639,3422.6,3419.8,5.99814]
[1718381754058,0.37287941,3422.3,3421.5,2.92269]
[1718381754371,6.8639,3422.6,3421.5,2.92269]
[1718381754372,7.6139,3422.6,3421.6,1.43344514]
[1718381754647,10.53565,3422.6,3421.6,1.43344514]
[1718381754855,7.6139,3422.6,3421.6,1.43344514]
[1718381755155,7.6139,3422.6,3421.5,2.92261]
[1718381755359,7.6139,3422.6,3421.6,2.9226]
[1718381755559,0.37287941,3422.7,3421.6,2.9226]
[1718381755560,0.37287941,3422.7,3422.0,2.92224]
[1718381755714,0.37287941,3422.7,3422.0,1.43344514]
[1718381755912,0.37287941,3422.7,3422.0,4.35570514]
[1718381756249,0.37287941,3422.7,3421.8,2.92237]
[1718381756450,0.37287941,3422.7,3421.9,2.92234]
[1718381756979,0.37287941,3422.7,3422.0,4.35570514]
[1718381757136,0.37287941,3422.7,3422.2,2.92206]
[1718381757343,0.37287941,3422.7,3422.1,2.92217]
[1718381757644,0.37287941,3422.7,3422.2,2.92209]
[1718381758031,0.37287941,3422.7,3422.1,2.92218]
[1718381758546,0.37287941,3423.0,3422.2,1.43344514]
[1718381758753,1.12287941,3423.3,3422.6,2.92173]
[1718381758934,0.37287941,3423.3,3422.2,1.43344514]
[1718381759138,6.7903,3424.1,3422.2,1.43344514]
[1718381759139,0.37287941,3423.6,3422.4,2.92192]
[1718381759375,0.37287941,3423.6,3422.9,2.92149]
[1718381759582,0.37287941,3423.6,3422.7,2.92166]
[1718381759875,0.37287941,3423.6,3422.8,39.35502514]
[1718381760184,0.37287941,3423.6,3422.8,35.0]
[1718381760342,0.75,3423.4,3422.3,0.59349033]
[1718381760546,0.37287941,3423.6,3422.6,2.92174]
[1718381760903,0.37287941,3423.6,3422.7,36.43344514]
[1718381761238,0.37287941,3423.6,3422.7,4.35510514]
[1718381761466,0.37287941,3423.9,3422.8,1.43344514]
[1718381761881,6.7903,3424.1,3422.6,35.0]
[1718381761882,1.12287941,3423.7,3422.6,35.0]
[1718381762092,1.12287941,3423.7,3422.7,2.92166]
[1718381762288,0.37287941,3423.7,3422.7,1.43344514]
[1718381762496,0.37287941,3423.9,3423.0,2.92137]
[1718381762723,7.16317941,3424.1,3423.1,36.43344514]
[1718381762856,7.5403,3424.1,3422.8,0.59349033]
[1718381763206,0.37287941,3424.2,3423.2,2.9212]
[1718381763352,0.37287941,3424.2,3423.3,1.43344514]
[1718381763552,0.37287941,3424.0,3423.3,1.43344514]
[1718381763808,0.37287941,3424.0,3423.4,0.05841291]
[1718381763954,0.37287941,3424.0,3423.3,1.43344514]
[1718381763955,0.05835142,3423.9,3422.9,0.59349033]
[1718381764323,2.92118,3423.3,3422.2,0.59349033]
[1718381764611,0.43123083,3423.2,3422.3,1.43344514]
[1718381764757,0.37287941,3422.6,3421.6,0.59349033]
[1718381764953,0.37287941,3422.6,3421.3,1.19870663]
[1718381764954,0.37287941,3422.4,3421.7,1.43344514]
[1718381765154,0.37287941,3422.4,3421.1,1.19870663]
[1718381765155,0.05835142,3422.3,3421.1,0.59349033]
[1718381765394,2.92155,3422.9,3421.4,2.92277]
[1718381765395,1.18123083,3422.6,3421.4,2.92277]
[1718381765593,0.37287941,3422.4,3421.5,1.49188633]
[1718381765793,0.37287941,3422.2,3421.5,1.49188633]
[1718381765996,0.80835142,3422.6,3421.1,0.26824325]
[1718381765997,0.37287941,3422.4,3421.1,0.86173358]
[1718381766196,0.37287941,3422.6,3421.5,2.92268]
[1718381766397,0.37287941,3422.4,3421.5,1.43344514]
[1718381766712,0.37287941,3422.1,3421.5,1.43344514]
[1718381767070,3.29506941,3422.1,3421.1,0.26824325]
[1718381767259,0.37287941,3422.4,3421.3,2.92283]
[1718381767452,0.37287941,3422.0,3421.4,1.49189051]
[1718381767653,0.75,3422.2,3421.1,35.0]
[1718381767900,0.37287941,3422.0,3421.2,1.43344514]
[1718381768198,0.37287941,3421.8,3421.1,1.43344514]
[1718381768496,0.05835142,3422.0,3421.1,1.43344514]
[1718381768497,0.43123083,3422.0,3421.1,1.43344514]
[1718381768699,1.18123083,3422.0,3420.9,35.0]
[1718381769012,3.67276,3421.5,3420.3,0.59349033]
[1718381769296,2.92279,3421.4,3420.4,1.43344514]
[1718381769600,0.75,3421.7,3420.4,36.43344514]
[1718381769803,0.75,3421.7,3420.5,0.05846088]
[1718381769958,0.37287941,3422.3,3420.5,0.05846088]
[1718381769959,1.12287941,3422.3,3421.2,2.92295]
[1718381770299,1.12287941,3422.3,3421.3,1.49189302]
[1718381770521,1.12287941,3422.3,3421.3,1.43344514]
[1718381770522,0.05835142,3422.1,3421.3,1.43344514]
[1718381770792,0.05835142,3422.1,3420.6,0.59349033]
[1718381770793,0.75,3421.7,3420.6,0.59349033]
[1718381770993,0.05835142,3421.8,3420.7,1.49190231]
[1718381771195,1.59938308,3422.1,3420.8,2.92324]
[1718381771396,0.75,3422.1,3420.9,4.41509596]
[1718381771552,0.75,3422.1,3421.0,2.9231]
[1718381771553,0.37287941,3422.0,3421.0,2.9231]
[1718381771759,0.80835142,3422.1,3421.1,1.49189598]
[1718381771760,0.37287941,3421.9,3421.1,1.49189598]
[1718381772268,0.05835142,3422.0,3421.1,1.49189598]
[1718381772459,0.80835142,3422.1,3421.1,1.49189598]
[1718381773354,0.80835142,3422.1,3420.4,35.0]
[1718381773355,3.67252,3421.7,3420.4,35.0]
[1718381773600,0.43123083,3421.6,3420.5,4.35698514]
[1718381773901,0.75,3421.5,3420.6,0.05845819]
[1718381774108,0.37287941,3421.2,3420.6,0.05845819]
[1718381774685,0.05835142,3421.4,3420.6,0.05845819]
[1718381774886,0.37287941,3421.5,3420.8,2.92327]
[1718381775104,0.37287941,3421.5,3420.9,0.05845768]
[1718381775614,1.12287941,3421.7,3420.8,0.05845772]
[1718381775759,1.12287941,3421.7,3420.8,2.98173772]
[1718381775964,1.12287941,3421.7,3420.8,0.05845772]
[1718381776509,0.05835142,3421.6,3420.8,0.05845772]
[1718381777017,0.80835142,3421.7,3420.8,2.98173772]
[1718381777159,0.37287941,3421.8,3421.1,2.92302]
[1718381777360,0.80835142,3421.7,3420.4,35.0]
[1718381777566,0.75,3421.5,3420.4,39.35706514]
[1718381777878,0.75,3421.5,3420.1,2.92381]
[1718381777879,0.75,3421.3,3420.1,2.92381]
[1718381778199,0.37287941,3421.6,3420.4,1.43344514]
[1718381778419,0.80835142,3421.5,3420.5,0.05845798]
[1718381778583,0.80835142,3421.5,3420.5,1.49190312]
[1718381778782,0.80835142,3421.5,3419.9,2.92401]
[1718381778783,3.73104142,3421.5,3420.3,2.92371]
[1718381779009,0.75,3421.3,3420.3,1.43344514]
[1718381779215,0.37287941,3421.1,3420.3,1.43344514]
[1718381780204,0.37287941,3420.8,3420.3,1.43344514]
[1718381780595,0.05835142,3421.2,3420.3,1.43344514]
[1718381780796,0.43145656,3421.2,3420.3,1.43344514]
[1718381781105,0.37287941,3420.7,3420.3,1.43344514]
[1718381781486,0.43145656,3421.2,3420.3,1.43344514]
[1718381781813,0.75,3421.3,3420.4,0.05846457]
[1718381782009,0.80835142,3421.3,3420.4,0.05846457]
[1718381782195,0.05835142,3421.3,3420.5,35.0]
[1718381782398,0.37287941,3421.4,3420.6,0.05845803]
[1718381782800,0.75,3421.9,3420.7,0.05845327]
[1718381782801,0.37287941,3421.6,3420.7,0.05845327]
[1718381782988,3.35388083,3421.6,3420.7,0.05845327]
[1718381783186,3.35388083,3421.6,3420.5,1.43344514]
[1718381783187,2.92278,3421.4,3420.6,0.05846014]
[1718381783414,2.92278,3421.4,3420.1,2.92387]
[1718381783415,0.80835142,3421.3,3420.1,2.92387]
[1718381783616,0.80835142,3421.3,3420.2,1.43344514]
[1718381783617,0.37287941,3420.8,3420.2,1.43344514]
[1718381783789,0.80835142,3421.3,3420.2,36.43344514]
[1718381784427,3.73123142,3421.3,3420.2,36.43344514]
[1718381784591,3.73123142,3421.3,3420.2,1.43344514]
[1718381784796,1.57323137,3421.3,3420.2,1.43344514]
[1718381785690,2.92316,3421.0,3420.2,1.43344514]
[1718381785999,2.92316,3421.0,3419.2,3.0]
[1718381786000,0.37287941,3420.4,3418.7,3.51850033]
[1718381786193,7.1713,3420.7,3418.8,1.43344514]
[1718381786194,2.92382,3420.2,3418.8,1.43344514]
[1718381786427,0.37287941,3419.6,3418.8,1.43344514]
[1718381786621,2.92403,3420.0,3418.8,1.43344514]
[1718381786797,0.37287941,3419.6,3418.8,1.43344514]
[1718381786996,0.05835142,3419.9,3418.8,1.43344514]
[1718381786997,0.37287941,3419.4,3418.8,1.43344514]
[1718381787302,0.43123083,3419.9,3418.8,1.43344514]
[1718381787503,0.75,3420.3,3418.9,0.78684719]
[1718381787738,0.37287941,3420.8,3419.7,2.92421]
[1718381787905,0.37287941,3421.1,3420.0,2.92394]
[1718381788110,0.43123083,3421.1,3420.1,1.49191103]
[1718381788297,0.43123083,3421.1,3420.1,1.43344514]
[1718381788499,0.37287941,3420.8,3420.1,1.43344514]
[1718381788833,0.37287941,3420.8,3419.2,2.92465]
[1718381788834,2.92355,3420.5,3419.2,2.92465]
[1718381788991,0.37287941,3420.2,3419.3,1.43344514]
[1718381789390,8.23505142,3420.1,3418.6,2.92512]
[1718381789629,0.37287941,3419.6,3418.7,1.43344514]
[1718381789833,5.84804,3420.0,3418.7,1.43344514]
[1718381789834,0.05835142,3419.9,3418.7,1.43344514]
[1718381789992,0.05835142,3419.9,3418.8,3.36085151]
[1718381790191,0.37287941,3419.8,3418.9,1.43344514]
[1718381790508,0.05835142,3419.7,3418.9,1.43344514]
[1718381790708,2.98258142,3419.7,3418.9,1.43344514]
[1718381791271,0.37287941,3419.4,3418.9,1.43344514]
[1718381791471,0.37287941,3419.4,3417.3,3.89681092]
[1718381791472,0.80835142,3419.3,3417.8,2.92585]
[1718381791761,0.37287941,3418.8,3417.6,3.518549]
[1718381791910,0.05835142,3418.7,3417.7,1.43344514]
[1718381792113,2.92526,3418.5,3417.7,1.43344514]